bitfinex-derivatives/quotes_ETHF0:USTF0_20251126
["timestamp","ask_amount","ask_price","bid_price","bid_amount"]
[1764167363163,2.36322401,2937.7,2937.6,0.00295038]
[1764167363464,2.62944311,2937.5,2937.4,0.00510395]
[1764167363866,0.17029,2937.1,2936.6,1.21160481]
[1764167364161,0.4522,2937.1,2937.0,0.4517]
[1764167364766,0.62249,2937.1,2937.0,0.4517]
[1764167365166,0.6225,2936.9,2936.8,0.45680395]
[1764167365463,2.35997311,2936.9,2936.8,0.45680395]
[1764167368066,2.35997311,2936.9,2936.8,0.00510395]
[1764167369063,2.35997311,2936.9,2936.8,0.45680395]
[1764167369361,0.2695,2937.5,2937.1,0.4517]
[1764167369362,0.17029,2937.2,2937.1,0.4517]
[1764167369562,0.62249,2937.2,2937.1,0.4517]
[1764167369966,0.4522,2937.2,2937.1,0.4517]
[1764167370361,0.6257509,2937.7,2937.6,0.4517]
[1764167370662,2.36322401,2937.7,2937.6,0.4517]
[1764167371056,0.1735509,2937.7,2937.6,0.4517]
[1764167371265,0.0032909,2937.7,2937.6,0.4517]
[1764167372555,0.4522,2937.6,2937.5,0.4517]
[1764167372761,2.18967311,2937.6,2937.5,0.4517]
[1764167374362,2.35993311,2937.6,2937.5,0.4517]
[1764167374671,2.35993311,2937.6,2937.0,0.2719]
[1764167374871,1.73747311,2937.3,2937.2,0.4517]
[1764167375076,2.18967311,2937.3,2937.2,0.4517]
[1764167377472,1.73747311,2937.3,2937.2,0.4517]
[1764167377673,0.17028,2937.4,2937.3,0.489]
[1764167378470,2.39675311,2937.4,2937.3,0.489]
[1764167380475,1.90775311,2937.4,2937.3,0.489]
[1764167380674,0.17028,2937.4,2937.3,0.489]
[1764167381778,0.65928,2937.4,2937.3,0.489]
[1764167383078,0.17028,2937.4,2937.3,0.489]
[1764167383778,0.65928,2937.4,2937.3,0.489]
[1764167385877,0.489,2937.1,2937.0,0.7609]
[1764167386080,2.22884365,2937.1,2937.0,0.7609]
[1764167386380,2.39913365,2937.1,2937.0,0.489]
[1764167386874,0.6625509,2937.7,2937.6,0.489]
[1764167387077,2.40239455,2937.7,2937.6,0.489]
[1764167387873,2.40239455,2937.7,2937.0,0.2808]
[1764167388269,3.31672137,2937.7,2937.0,0.2808]
[1764167389086,0.65926,2937.6,2937.5,0.489]
[1764167390686,0.489,2937.0,2936.9,0.489]
[1764167390873,2.22884365,2937.0,2936.9,0.489]
[1764167394692,0.6593,2936.9,2936.8,0.00510395]
[1764167394991,1.87056766,2936.9,2936.8,0.00510395]
[1764167395377,0.6593,2936.9,2936.8,0.00510395]
[1764167397281,1.57651932,2936.9,2936.8,0.00510395]
[1764167397776,0.489,2936.1,2935.7,1.21160481]
[1764167397985,2.22884365,2936.1,2936.0,0.489]
[1764167398788,2.22884365,2936.1,2936.0,0.49296153]
[1764167399780,0.489,2936.1,2936.0,0.77376153]
[1764167400186,2.39919365,2936.1,2936.0,0.00396153]
[1764167400388,0.00510395,2936.3,2936.2,0.489]
[1764167400610,1.73984365,2936.5,2936.0,0.28476153]
[1764167400893,0.65936,2935.9,2935.8,0.00340264]
[1764167401090,0.17032,2936.7,2936.3,0.489]
[1764167401278,0.2839,2937.0,2936.0,0.7698]
[1764167401279,0.2409,2936.5,2936.0,0.7698]
[1764167401480,0.489,2936.1,2936.0,0.7698]
[1764167401690,0.24600395,2936.5,2935.8,0.49240264]
[1764167401893,0.24600395,2936.5,2935.8,0.4966857]
[1764167402098,0.489,2935.9,2935.8,0.4966857]
[1764167402282,0.489,2936.4,2936.3,0.489]
[1764167402689,0.00510395,2936.5,2936.4,0.489]
[1764167403185,0.45417,2937.5,2936.5,0.2808]
[1764167403384,1.98074365,2937.0,2936.5,0.2808]
[1764167403688,0.17033,2936.5,2936.0,1.49240481]
[1764167403886,0.2409,2937.0,2936.2,0.489]
[1764167403887,1.73984365,2936.3,2936.2,0.489]
[1764167404092,0.00510395,2936.5,2936.4,0.489]
[1764167405192,0.17031,2936.9,2936.8,0.4907]
[1764167405587,0.467,2937.3,2937.2,0.4907]
[1764167405788,0.7362,2937.5,2937.4,0.4922]
[1764167405987,0.4523,2937.5,2937.4,0.4922]
[1764167406291,0.4523,2936.6,2936.5,0.7705]
[1764167406487,2.19214365,2936.8,2936.7,0.4922]
[1764167406692,0.4523,2936.8,2936.7,0.4922]
[1764167406890,0.17031,2936.9,2936.0,1.49240481]
[1764167406891,0.4523,2936.6,2936.0,1.49240481]
[1764167407089,0.4523,2936.6,2936.5,0.7819]
[1764167407295,0.62261,2936.9,2936.8,0.4922]
[1764167407486,0.2916,2936.5,2936.0,1.49240481]
[1764167407687,0.17033,2936.5,2936.4,0.4922]
[1764167407996,0.4523,2936.6,2936.5,0.7819]
[1764167408487,0.4523,2936.1,2936.0,0.2808]
[1764167408688,0.2839,2936.5,2935.8,0.0076857]
[1764167408689,0.4523,2935.9,2935.8,0.0076857]
[1764167408891,0.4523,2935.9,2935.8,0.4998857]
[1764167409093,0.45740395,2936.1,2936.0,0.4922]
[1764167409994,0.4523,2935.9,2935.8,0.4998857]
[1764167410395,0.4523,2935.9,2935.8,0.0076857]
[1764167410592,0.4523,2935.9,2935.8,0.4998857]
[1764167410796,0.62266,2935.9,2935.8,0.4998857]
[1764167410989,0.17036,2935.9,2935.8,0.4998857]
[1764167411190,0.62266,2935.9,2935.8,0.0076857]
[1764167412693,0.4523,2935.1,2935.0,0.7819]
[1764167412893,0.62269,2935.4,2935.3,0.4922]
[1764167413292,0.62269,2935.4,2935.0,0.2897]
[1764167413497,0.62269,2935.4,2935.3,0.4922]
[1764167413797,0.17277958,2935.4,2935.3,0.49487716]
[1764167413994,0.17036,2936.0,2935.3,6.49487716]
[1764167414300,0.62266,2936.0,2935.9,0.4922]
[1764167415093,0.17315699,2936.0,2935.9,0.4922]
[1764167415293,0.00279699,2936.0,2935.9,0.4922]
[1764167416701,0.45509699,2936.0,2935.9,0.4922]
[1764167417300,0.00279699,2936.0,2935.9,0.4922]
[1764167417496,0.4523,2935.6,2935.5,0.4922]
[1764167417698,0.40055699,2936.0,2935.5,0.7819]
[1764167417991,0.62545699,2936.0,2935.9,0.4922]
[1764167418896,0.40055699,2936.0,2935.5,0.7819]
[1764167419097,0.17036,2935.9,2935.5,0.7819]
[1764167419301,0.62266,2935.9,2935.8,0.4922]
[1764167419602,0.62266,2935.9,2935.5,0.2897]
[1764167419797,0.4523,2935.6,2935.5,0.4922]
[1764167420298,0.23019699,2936.0,2935.3,0.49487716]
[1764167420694,0.4523,2935.4,2935.3,0.49487716]
[1764167420890,0.62268,2935.7,2935.6,0.4922]
[1764167421695,0.23019699,2936.0,2935.6,0.4922]
[1764167421998,0.00279699,2936.0,2935.9,0.4922]
[1764167422597,0.4523,2936.1,2936.0,0.4922]
[1764167422803,1.22317892,2937.0,2936.9,0.4922]
[1764167423005,0.4523,2937.1,2937.0,0.4922]
[1764167423592,0.4523,2936.9,2936.8,0.00510395]
[1764167423903,0.00335857,2937.1,2937.0,0.7819]
[1764167424702,0.45565857,2937.1,2937.0,0.4922]
[1764167425311,0.00335857,2937.1,2937.0,0.7819]
[1764167425995,0.00335857,2937.1,2936.8,0.00510395]
[1764167425996,0.4523,2936.9,2936.8,0.49730395]
[1764167426197,0.91423,2936.5,2936.2,1.21160481]
[1764167426500,0.91423,2936.5,2936.0,0.2897]
[1764167427202,0.62263,2936.5,2936.4,0.4922]
[1764167428203,0.17033,2936.5,2936.4,0.4922]
[1764167428900,0.2916,2937.0,2936.5,0.2897]
[1764167429104,0.17031,2936.8,2936.5,0.2897]
[1764167429495,0.4523,2936.6,2936.5,0.7819]
[1764167430103,0.62261,2936.8,2936.7,0.4922]
[1764167430302,0.00335857,2937.1,2937.0,0.4922]
[1764167430497,0.00335857,2937.1,2937.0,0.7819]
[1764167431596,0.62594857,2937.1,2936.5,0.2897]
[1764167431801,0.2916,2937.0,2936.5,0.2897]
[1764167431998,0.4523,2936.6,2936.1,1.21160481]
[1764167432211,0.62262,2936.6,2936.0,0.29480395]
[1764167432408,0.2916,2937.0,2936.0,0.29480395]
[1764167432612,0.4523,2936.1,2936.0,0.78700395]
[1764167432815,0.62265,2936.1,2936.0,0.00510395]
[1764167433311,0.62265,2936.1,2936.0,0.49730395]
[1764167433907,0.62265,2936.1,2936.0,0.00510395]
[1764167438011,0.62265,2936.1,2936.0,0.49730395]
[1764167438414,0.62265,2936.1,2936.0,0.00510395]
[1764167439216,0.17036,2935.9,2935.3,0.00267716]
[1764167439719,0.64516,2935.9,2935.8,0.4549]
[1764167440017,0.64516,2935.9,2935.5,0.2818]
[1764167440518,1.22317892,2937.2,2936.7,0.4549]
[1764167440719,2.44333754,2937.3,2937.2,0.4549]
[1764167440720,0.00510395,2937.3,2937.2,0.4549]
[1764167440909,0.2771,2938.0,2937.2,0.4549]
[1764167441314,0.17023,2938.2,2938.1,0.4549]
[1764167441510,0.64503,2938.2,2937.5,0.2818]
[1764167441813,0.47815278,2938.2,2937.5,0.28514756]
[1764167442016,0.2699,2938.0,2937.5,0.28514756]
[1764167442213,0.2699,2938.0,2937.5,0.00334756]
[1764167442514,0.00510395,2938.1,2937.5,0.28514756]
[1764167443313,0.00510395,2938.1,2938.0,0.4549]
[1764167443519,0.47990395,2938.1,2938.0,0.4549]
[1764167444818,0.00510395,2938.1,2938.0,0.4549]
[1764167445020,0.17019,2938.9,2938.1,0.4549]
[1764167446016,0.00510395,2938.8,2938.1,0.4549]
[1764167446724,0.00510395,2938.8,2938.7,0.4549]
[1764167451329,0.17017,2939.2,2939.1,0.4549]
[1764167451626,2.60864053,2940.1,2939.1,0.4549]
[1764167451627,0.17014,2939.8,2939.1,0.4549]
[1764167451817,0.17015,2939.7,2939.1,0.4549]
[1764167452218,0.17015,2939.7,2939.6,0.4549]
[1764167452422,0.64898725,2939.7,2939.6,0.0035675]
[1764167454740,0.64898725,2939.7,2939.6,0.4584675]
[1764167455134,0.00403725,2939.7,2939.6,0.4584675]
[1764167455535,0.47883725,2939.7,2939.6,0.0035675]
[1764167455841,0.00403725,2939.7,2939.6,0.4584675]
[1764167456838,0.47883725,2939.7,2939.6,0.4584675]
[1764167457642,0.64897725,2939.7,2939.6,0.0035675]
[1764167460340,0.17417725,2939.7,2939.6,0.4584675]
[1764167461348,0.64897725,2939.7,2939.6,0.4584675]
[1764167461544,0.00403725,2939.7,2939.6,0.4584675]
[1764167461745,0.00510395,2939.9,2939.6,0.4584675]
[1764167461949,0.2771,2941.0,2939.8,3.06354053]
[1764167462153,0.2771,2941.0,2939.8,0.4549]
[1764167462455,0.44717,2941.0,2939.8,0.4549]
[1764167462755,0.2771,2941.5,2941.0,0.2818]
[1764167462952,0.4748,2941.1,2941.0,0.00510395]
[1764167463142,0.00628809,2941.5,2941.4,0.4549]
[1764167463352,0.48108809,2941.5,2941.0,0.28690395]
[1764167463552,0.4748,2941.1,2941.0,0.00510395]
[1764167463852,0.4748,2941.1,2941.0,0.46000395]
[1764167464153,0.4748,2941.1,2941.0,0.00510395]
[1764167465254,0.64486,2941.1,2941.0,0.00510395]
[1764167465459,0.17009,2940.7,2940.0,0.2352]
[1764167465762,2.87874053,2941.0,2940.0,0.2352]
[1764167466447,0.4652,2940.3,2940.2,0.00510395]
[1764167466648,0.63531,2940.3,2940.2,0.00510395]
[1764167467456,0.44017,2941.0,2940.2,0.47720395]
[1764167467647,0.00628809,2941.5,2941.0,0.2697]
[1764167467959,0.17005,2941.3,2940.5,0.2697]
[1764167468360,0.00628809,2941.5,2941.2,0.4721]
[1764167468659,0.00628809,2941.5,2941.4,0.4721]
[1764167469558,0.17008,2940.8,2940.2,0.00510395]
[1764167469757,0.2843,2941.0,2940.2,0.00510395]
[1764167469951,0.17009,2940.6,2940.2,0.00510395]
[1764167470659,0.1701,2940.5,2940.2,0.00510395]
[1764167470861,0.4652,2940.3,2940.2,0.00510395]
[1764167471164,0.63531,2940.3,2940.2,0.00510395]
[1764167471456,0.63531,2940.3,2939.0,0.2697]
[1764167471457,0.4652,2939.7,2939.0,0.2697]
[1764167471653,0.17013,2939.9,2939.6,0.4756675]
[1764167471859,0.4652,2939.7,2939.6,0.0035675]
[1764167472254,0.63534,2939.7,2939.6,0.0035675]
[1764167472857,0.63534,2939.7,2939.4,0.00510395]
[1764167472858,0.7495,2939.5,2938.5,0.3317]
[1764167473057,0.7495,2939.5,2938.0,1.47934258]
[1764167473058,0.2483,2939.0,2938.0,0.2697]
[1764167473360,0.17021,2938.6,2938.0,0.2697]
[1764167473759,0.2843,2938.5,2937.5,0.2697]
[1764167473958,0.17024,2938.0,2937.7,0.00510395]
[1764167474159,0.63547,2937.6,2937.5,0.0026135]
[1764167474359,2.60864053,2937.9,2936.5,0.2697]
[1764167474360,0.1703,2937.1,2936.5,0.2697]
[1764167474660,0.2771,2937.5,2936.0,0.2697]
[1764167474661,0.17032,2936.7,2936.0,0.2697]
[1764167474967,0.2843,2937.0,2936.0,0.2697]
[1764167475265,0.17541395,2936.8,2936.2,0.00510395]
[1764167475465,0.4652,2936.1,2936.0,0.00303943]
[1764167475653,0.46867457,2936.1,2936.0,0.00303943]
[1764167476252,0.00347457,2936.1,2936.0,0.00303943]
[1764167476463,0.63902457,2936.1,2935.2,1.273]
[1764167476664,0.2843,2935.8,2935.4,0.00510395]
[1764167476856,0.4652,2935.5,2935.4,0.00510395]
[1764167477055,0.4652,2935.5,2934.5,0.2697]
[1764167477555,0.17042,2935.0,2934.5,0.00314427]
[1764167477755,0.2843,2935.8,2934.6,0.2697]
[1764167477961,0.00510395,2935.5,2934.6,0.2697]
[1764167478466,0.00510395,2935.5,2935.4,0.4721]
[1764167478866,0.00510395,2935.5,2934.6,0.2697]
[1764167479768,0.00510395,2935.5,2934.5,0.00314427]
[1764167479769,0.1704,2935.4,2934.5,0.00314427]
[1764167480061,3.05614053,2935.2,2934.5,0.00314427]
[1764167480255,0.4475,2935.2,2934.5,0.00314427]
[1764167481064,0.1704,2935.2,2934.5,0.00314427]
[1764167481270,0.00510395,2935.5,2934.6,0.2697]
[1764167481970,2.60864053,2935.4,2934.6,0.2697]
[1764167483262,2.77904053,2935.4,2934.5,0.00314427]
[1764167483865,0.00510395,2935.5,2934.5,0.00314427]
[1764167483866,2.60864053,2935.0,2934.5,0.00314427]
[1764167484163,0.1704,2935.3,2934.6,0.2697]
[1764167484569,0.2843,2935.2,2934.5,0.00314427]
[1764167484867,2.60864053,2935.0,2934.5,0.00314427]
[1764167485461,3.07384053,2934.6,2934.0,0.2697]
[1764167485668,3.35814053,2934.6,2933.4,0.2697]
[1764167486167,0.17045,2934.5,2933.4,0.2697]
[1764167486564,0.17045,2934.5,2933.4,0.27345304]
[1764167486764,2.60864053,2934.2,2933.4,0.27345304]
[1764167487164,0.45477,2934.0,2933.4,0.00375304]
[1764167487470,0.17048,2933.9,2933.4,0.00375304]
[1764167487762,0.4652,2933.5,2933.4,0.00375304]
[1764167488165,0.29299577,2934.0,2933.4,0.00375304]
[1764167488366,0.17917577,2934.0,2933.4,0.27345304]
[1764167488862,0.00869577,2934.0,2933.4,0.27345304]
[1764167489671,0.00869577,2934.0,2933.9,0.4721]
[1764167490258,2.60864053,2934.2,2933.4,0.27345304]
[1764167490463,0.17044,2934.6,2933.4,0.27345304]
[1764167490663,0.17041,2935.1,2933.4,0.44396304]
[1764167490868,0.17043,2934.8,2933.4,0.27345304]
[1764167491068,2.60864053,2935.1,2933.4,0.27345304]
[1764167491259,0.00511281,2934.5,2934.0,0.00511281]
[1764167491858,0.4652,2934.1,2933.4,0.27345304]
[1764167492073,0.2843,2934.0,2933.4,0.00375304]
[1764167492571,0.17049,2933.8,2933.4,0.00375304]
[1764167493162,0.4652,2933.5,2933.4,0.00375304]
[1764167493368,0.4652,2933.5,2932.8,0.2697]
[1764167494063,0.1705,2933.6,2932.8,0.2697]
[1764167494263,0.2843,2934.0,2932.8,0.2697]
[1764167494463,2.77910053,2934.3,2932.8,0.27239771]
[1764167494464,0.17047,2934.1,2932.8,0.27239771]
[1764167495364,2.60864053,2934.3,2932.8,0.27239771]
[1764167495365,0.2849,2934.0,2932.8,0.27239771]
[1764167495566,0.17051,2933.4,2932.8,0.27239771]
[1764167495869,2.89354053,2934.0,2932.8,0.27239771]
[1764167496261,2.60864053,2933.6,2932.8,0.27239771]
[1764167496467,0.17052,2933.3,2932.8,0.00269771]
[1764167496664,0.17052,2933.3,2932.8,0.29339771]
[1764167497068,0.17054,2932.8,2932.2,0.4387]
[1764167497268,0.17054,2932.8,2932.2,0.2697]
[1764167497269,0.17565281,2932.8,2932.2,0.2697]
[1764167497473,0.17056,2932.6,2932.2,0.2697]
[1764167497769,2.60864053,2932.5,2931.1,0.153]
[1764167497965,2.60864053,2931.9,2931.1,0.153]
[1764167498166,2.61104682,2931.9,2931.1,0.00240142]
[1764167498369,2.78164682,2931.9,2931.1,0.00240142]
[1764167498573,0.4579,2931.2,2930.0,2.308]
[1764167498875,0.00511281,2931.1,2930.0,2.308]
[1764167499263,2.89354053,2931.0,2930.0,2.308]
[1764167499467,2.60864053,2930.6,2929.2,12.5647]
[1764167499762,2.60864053,2930.6,2929.8,0.00271146]
[1764167499964,2.77931053,2930.6,2929.8,0.00271146]
[1764167500176,0.2771,2930.4,2929.8,0.00271146]
[1764167500362,2.60864053,2930.2,2929.2,0.2907]
[1764167500564,2.60864053,2929.8,2928.4,0.1708]
[1764167500768,0.00511281,2929.5,2928.4,0.1708]
[1764167501166,0.00511281,2929.5,2928.2,0.107]
[1764167501362,0.00511281,2929.5,2928.6,0.29328528]
[1764167501363,0.00785011,2929.5,2928.6,0.29328528]
[1764167501568,2.60864053,2929.4,2928.6,0.29328528]
[1764167501968,0.00785011,2929.5,2928.6,0.29328528]
[1764167502168,2.60864053,2930.3,2929.2,0.2907]
[1764167502971,0.45588,2930.4,2929.2,0.2907]
[1764167503176,0.00511281,2930.0,2929.5,0.00511281]
[1764167503579,0.00511281,2930.0,2929.8,0.2907]
[1764167503768,0.00511281,2930.0,2929.5,0.00511281]
[1764167504373,0.00280531,2930.3,2929.8,0.2907]
[1764167504675,0.2852,2931.0,2929.8,0.2907]
[1764167504876,0.2852,2931.0,2929.5,0.00511281]
[1764167504877,3.14252668,2930.2,2929.5,0.00511281]
[1764167505090,0.2852,2930.4,2928.1,0.26382]
[1764167505091,2.97182668,2929.7,2928.1,0.26382]
[1764167505379,0.45592,2929.8,2928.1,0.26382]
[1764167505677,0.00246706,2929.7,2928.2,0.17081]
[1764167505883,0.17319706,2929.7,2927.5,0.23028004]
[1764167506192,0.00511281,2929.4,2928.9,0.00511281]
[1764167506474,0.2852,2929.2,2927.4,0.2907]
[1764167506671,0.2511,2928.6,2927.4,0.2907]
[1764167506868,2.97182668,2928.3,2926.5,0.092]
[1764167507077,3.14263668,2928.3,2926.5,0.092]
[1764167507477,0.00512172,2927.8,2926.8,0.29395037]
[1764167508073,0.00512172,2927.8,2927.4,0.2907]
[1764167509081,1.56566306,2930.9,2928.8,0.2112]
[1764167509279,4.09396962,2930.7,2928.8,0.2112]
[1764167509476,4.26466962,2930.1,2928.8,0.2112]
[1764167509873,0.1707,2930.1,2928.8,0.2112]
[1764167510073,0.00512172,2929.5,2929.0,0.00512172]
[1764167510282,0.00512172,2929.5,2929.0,0.00753309]
[1764167512786,0.17066,2930.8,2929.5,0.2907]
[1764167513384,0.17062,2931.5,2929.5,0.2907]
[1764167513588,0.17063,2931.4,2929.5,0.46143]
[1764167513781,0.00512172,2930.7,2929.5,0.46143]
[1764167513981,0.00828962,2930.7,2930.2,0.2907]
[1764167516586,0.00828962,2930.7,2929.5,0.2907]
[1764167518689,0.00828962,2930.7,2929.6,0.17073]
[1764167518889,0.00828962,2930.7,2930.1,0.32917608]
[1764167519991,0.00828962,2930.7,2930.4,0.32917608]
[1764167520188,0.17895962,2930.7,2930.4,0.32917608]
[1764167520493,0.00828962,2930.7,2930.4,0.61987608]
[1764167520682,0.17062,2931.5,2930.4,0.61987608]
[1764167520879,0.17062,2931.5,2930.9,0.32917608]
[1764167521588,0.2852,2931.6,2930.9,0.32917608]
[1764167521790,0.00903642,2931.5,2930.9,0.06284541]
[1764167522692,0.00903642,2931.5,2931.2,0.05772369]
[1764167522985,0.2511,2932.3,2931.2,0.06145355]
[1764167523181,0.17059,2932.1,2931.2,0.06145355]
[1764167523379,0.1706,2931.9,2931.2,0.06145355]
[1764167523791,0.45581,2931.6,2931.5,0.22215048]
[1764167523991,0.45845798,2931.6,2931.5,0.22215048]
[1764167524489,0.00264798,2931.6,2931.5,0.22215048]
[1764167525096,1e-08,2931.8,2931.7,0.4943]
[1764167525390,0.17052,2933.3,2931.7,0.4943]
[1764167525589,0.2698,2932.8,2931.7,0.4943]
[1764167525889,0.17052,2933.2,2932.2,0.51365048]
[1764167526090,0.4614,2932.3,2932.2,0.22215048]
[1764167526392,6.63197,2932.3,2932.2,0.22215048]
[1764167526581,0.63198,2932.1,2932.0,0.00512172]
[1764167526786,0.63198,2932.1,2932.0,1e-08]
[1764167526989,0.4614,2931.3,2931.2,0.00372986]
[1764167527190,0.4614,2931.3,2929.6,12.289]
[1764167527392,0.17068,2930.5,2929.2,0.2915]
[1764167527581,0.17066,2930.8,2929.2,0.2915]
[1764167527891,0.17063,2931.4,2929.8,0.2915]
[1764167528081,0.17320494,2931.4,2929.8,0.29524164]
[1764167528582,0.17320494,2931.4,2929.9,0.17071]
[1764167528896,0.17064,2931.1,2929.8,0.29524164]
[1764167529192,0.00512172,2930.7,2929.8,0.29524164]
[1764167529387,0.00257494,2931.4,2930.4,0.2915]
[1764167529784,0.17064,2931.2,2930.4,0.2915]
[1764167530290,0.00257494,2931.4,2930.4,0.2915]
[1764167530587,0.00335527,2931.2,2930.4,0.2915]
[1764167531189,0.00335527,2931.2,2930.9,0.2915]
[1764167532298,0.00335527,2931.2,2930.4,0.2915]
[1764167532599,0.00335527,2931.2,2930.9,0.2915]
[1764167532894,0.00335527,2931.2,2930.4,0.2915]
[1764167533289,0.00335527,2931.2,2931.0,0.2915]
[1764167533493,0.00335527,2931.2,2930.4,0.2915]
[1764167535090,0.17399527,2931.2,2930.4,0.2915]
[1764167535493,0.17065,2931.0,2930.4,0.2915]
[1764167535686,0.00335527,2931.2,2930.0,1.221]
[1764167535890,0.17066,2930.8,2930.0,1.221]
[1764167536388,0.17068,2930.4,2929.8,0.29524164]
[1764167537382,2.97061677,2930.8,2929.8,0.00374164]
[1764167537592,0.1707,2930.2,2929.8,0.00374164]
[1764167537787,0.17066,2930.9,2930.1,0.4712]
[1764167538292,0.00257494,2931.4,2930.1,0.4712]
[1764167538894,1.17605015,2931.6,2930.1,0.4712]
[1764167538895,0.89535015,2931.9,2931.6,0.2915]
[1764167539093,0.89535015,2932.2,2931.6,0.2915]
[1764167539294,2.97061677,2932.2,2931.2,1.20089014]
[1764167539498,2.97061677,2932.2,2931.0,1.44709014]
[1764167539696,0.1706,2931.8,2931.0,0.2462]
[1764167539891,0.17437655,2931.8,2931.1,0.00512172]
[1764167540296,0.17061,2931.7,2931.1,0.00512172]
[1764167543592,0.17061,2931.6,2931.1,0.00512172]
[1764167544294,0.17062,2931.5,2931.1,0.00512172]
[1764167544999,0.4614,2931.2,2931.1,0.00512172]
[1764167545191,0.63204,2931.2,2931.1,0.00512172]
[1764167546100,1.17605015,2931.6,2931.1,0.00512172]
[1764167546296,0.89535015,2931.6,2931.1,0.00512172]
[1764167546594,0.00377655,2931.8,2931.7,0.4712]
[1764167546999,0.00377655,2931.8,2931.3,1.20089014]
[1764167547197,0.00377655,2931.8,2931.2,1.20089014]
[1764167547391,0.89535015,2932.4,2931.7,0.4712]
[1764167547589,0.17059,2932.1,2931.3,1.20089014]
[1764167548197,0.17059,2932.0,2931.2,1.20089014]
[1764167548394,0.1706,2931.9,2931.2,1.20089014]
[1764167548590,0.1706,2931.9,2931.1,0.00512172]
[1764167548793,0.1706,2931.9,2931.1,1.20601186]
[1764167548996,0.1706,2931.9,2931.3,1.20089014]
[1764167549397,0.00329457,2932.0,2931.1,1.20601186]
[1764167550190,0.1706,2931.9,2931.1,1.20601186]
[1764167550703,0.17061,2931.8,2931.1,0.00512172]
[1764167551198,0.89535015,2932.9,2932.3,0.4712]
[1764167551402,0.89535015,2933.7,2932.5,2.97061677]
[1764167551705,3.01807048,2934.7,2933.0,1.21895469]
[1764167551706,1.06581015,2934.3,2933.0,1.21895469]
[1764167552094,3.14109677,2934.0,2932.8,1.51557641]
[1764167552294,3.14430913,2934.0,2932.8,0.30065906]
[1764167552501,0.17048,2933.9,2932.8,0.30065906]
[1764167552706,2.97382913,2934.0,2932.8,0.30065906]
[1764167552892,0.1705,2933.6,2932.8,0.00915906]
[1764167553691,0.1705,2933.5,2932.8,0.00915906]
[1764167553893,0.17052,2933.3,2932.8,0.00915906]
[1764167554098,0.17053,2933.0,2932.8,0.00915906]
[1764167554298,1.647,2933.3,2932.8,0.00915906]
[1764167554506,0.17054,2932.9,2932.8,0.00313409]
[1764167555401,0.17055,2932.7,2931.7,1.21895469]
[1764167555710,0.00509204,2932.5,2931.9,0.00511281]
[1764167555906,0.17565204,2932.5,2931.9,0.00511281]
[1764167556410,0.17565204,2932.5,2931.9,0.00816649]
[1764167556810,0.00509204,2932.5,2931.9,0.00816649]
[1764167558410,0.17566204,2932.5,2931.9,0.00816649]
[1764167559503,0.00509204,2932.5,2931.9,0.00816649]
[1764167559706,0.17058,2932.2,2931.9,0.00816649]
[1764167560112,0.64569,2932.0,2931.9,0.00816649]
[1764167560412,0.17059,2932.0,2931.9,0.00816649]
[1764167560615,0.00509204,2932.5,2931.9,0.00816649]
[1764167560914,0.00509204,2932.5,2932.4,0.469]
[1764167561216,0.17053,2933.1,2932.2,0.2932]
[1764167561402,0.17053,2933.0,2931.9,0.00816649]
[1764167561716,0.17054,2932.8,2931.9,0.00816649]
[1764167562214,0.17055,2932.7,2931.9,0.00816649]
[1764167562414,1.313,2933.2,2931.9,0.00816649]
[1764167562609,0.2807,2933.7,2932.2,0.46378]
[1764167562816,0.17052,2933.3,2932.2,1.51215469]
[1764167563011,0.17052,2933.2,2932.2,0.2932]
[1764167563219,2.97061677,2933.6,2932.2,0.2932]
[1764167563418,0.2807,2933.7,2932.2,0.2932]
[1764167563419,0.17052,2933.2,2932.2,0.2932]
[1764167563712,0.17053,2933.0,2932.2,0.2932]
[1764167567216,0.655,2933.2,2932.2,0.2932]
[1764167567527,0.17052,2933.3,2932.2,1.51215469]
[1764167568410,0.17052,2933.3,2932.3,1.21895469]
[1764167568608,0.17052,2933.3,2932.2,0.2932]
[1764167568609,0.17052,2933.3,2933.2,0.469]
[1764167568813,1.81084229,2934.3,2932.4,1.21895469]
[1764167568814,1.39022212,2934.6,2933.4,0.2932]
[1764167569009,2.61794343,2934.4,2933.7,0.00511281]
[1764167569815,2.62224416,2934.4,2933.7,0.00511281]
[1764167570014,2.62224416,2934.4,2934.0,0.06274395]
[1764167570220,2.62224416,2934.4,2934.0,0.06543939]
[1764167570430,0.00430073,2934.4,2934.0,0.06543939]
[1764167570614,3.08095343,2935.2,2934.0,0.35863939]
[1764167570810,0.32027,2935.8,2934.1,0.90990363]
[1764167571020,0.32027,2935.8,2934.3,0.90990363]
[1764167571219,2.61794343,2935.6,2935.0,0.06274395]
[1764167571523,2.78832343,2935.6,2935.0,0.06274395]
[1764167571719,1.81084229,2936.7,2935.2,0.1911]
[1764167571930,2.61794343,2936.5,2935.9,0.06274395]
[1764167572226,3.08087343,2936.5,2935.9,0.06274395]
[1764167572617,0.46293,2936.5,2935.9,0.06274395]
[1764167572819,0.46647495,2936.5,2935.9,0.06274395]
[1764167573120,0.46647495,2936.5,2936.2,0.06274395]
[1764167573317,1.68647495,2936.5,2936.2,0.06612498]
[1764167573723,3.534,2936.4,2936.2,0.06612498]
[1764167573914,3.873,2936.3,2936.2,0.06612498]
[1764167574115,3.81025605,2936.3,2936.2,0.00338103]
[1764167574427,0.17387495,2936.5,2936.2,0.00338103]
[1764167578216,0.64544,2936.3,2936.2,0.00338103]
[1764167578718,0.4751,2935.8,2935.7,0.00511281]
[1764167579320,0.2926,2936.4,2935.7,0.00511281]
[1764167579522,0.829,2936.3,2935.7,0.00511281]
[1764167579822,0.79197,2935.8,2935.7,0.00843574]
[1764167580023,0.64547,2935.8,2935.7,0.00843574]
[1764167580228,0.2926,2936.4,2935.7,0.00843574]
[1764167580420,0.861,2936.1,2935.7,0.00843574]
[1764167580614,3.48735,2936.2,2935.7,0.00843574]
[1764167580820,3.792,2936.2,2935.7,0.00843574]
[1764167581026,0.6216,2935.8,2935.7,0.00843574]
[1764167581324,0.17041,2935.2,2934.6,0.2932]
[1764167581514,0.17041,2935.2,2934.0,0.2932]